bitfinex/quotes_SOLUSD_20260120
["timestamp","ask_amount","ask_price","bid_price","bid_amount"]
[1768923150736,23.70424868,127.88,127.83,7.53210843]
[1768923151118,23.70424868,127.88,127.84,0.94785975]
[1768923151634,17.12,127.89,127.86,0.94785975]
[1768923151828,6.58424868,127.92,127.88,0.94785975]
[1768923152035,23.70424868,127.92,127.88,0.94785975]
[1768923152222,17.12,127.92,127.88,7.53210843]
[1768923152422,6.58424868,127.93,127.89,0.94785975]
[1768923152625,23.70424868,127.93,127.89,0.94785975]
[1768923152831,6.58424868,127.92,127.87,0.94785975]
[1768923153131,18.04547518,127.93,127.84,33.33446198]
[1768923153132,6.58424868,127.9,127.85,7.53210843]
[1768923153335,17.12,127.9,127.85,15.35359284]
[1768923153732,17.12,127.9,127.86,0.94785975]
[1768923154332,17.12,127.9,127.86,7.53210843]
[1768923156233,7.50972386,127.89,127.85,7.82148441]
[1768923156437,17.12,127.9,127.86,6.58424868]
[1768923156644,17.12,127.9,127.86,14.40522757]
[1768923156834,17.5904,127.9,127.86,14.40522757]
[1768923157267,0.4704,127.9,127.88,0.94785975]
[1768923157441,7.50972386,127.96,127.9,0.94785975]
[1768923157769,0.92547518,127.96,127.92,6.58424868]
[1768923158692,17.12,127.97,127.93,6.58424868]
[1768923159783,17.12,127.97,127.94,6.58424868]
[1768923159988,0.92547518,127.96,127.92,6.58424868]
[1768923160180,0.92547518,127.96,127.91,7.53210843]
[1768923160493,0.92547518,127.96,127.92,6.58424868]
[1768923160698,0.92547518,127.96,127.91,0.94785975]
[1768923160699,17.12,127.97,127.94,7.53210843]
[1768923160984,17.12,127.97,127.94,6.58424868]
[1768923161469,0.92547518,127.99,127.95,6.58424868]
[1768923161685,17.12,127.98,127.95,6.58424868]
[1768923161855,17.12,127.98,127.96,6.58424868]
[1768923162056,17.12,127.98,127.97,6.58424868]
[1768923162389,0.92547518,128.01,127.97,6.58424868]
[1768923162587,0.92547518,128.01,127.96,0.94785975]
[1768923162588,0.92547518,128.01,127.98,6.58424868]
[1768923162804,17.12,128.02,127.99,6.58424868]
[1768923163010,17.12,128.02,127.99,6.59689058]
[1768923163417,0.92547518,128.05,128.0,6.59689058]
[1768923163623,0.92547518,128.05,128.01,6.59689058]
[1768923163825,17.12,128.06,128.02,6.59689058]
[1768923164110,17.12,128.06,127.98,7.49881778]
[1768923164111,0.89634632,128.03,127.98,7.49881778]
[1768923164285,6.59689058,128.04,127.99,0.9019272]
[1768923164605,0.89634632,128.06,128.02,6.59689058]
[1768923165510,6.59689058,128.08,128.03,7.51521607]
[1768923165511,0.90517189,128.08,128.03,7.51521607]
[1768923165909,0.90517189,128.07,128.02,6.59689058]
[1768923166111,7.50206247,128.07,128.02,6.59689058]
[1768923166610,7.50206247,128.07,128.02,7.51521607]
[1768923166810,0.90517189,128.07,128.02,7.51521607]
[1768923168010,0.90517189,128.07,127.99,0.91832549]
[1768923168011,7.50206247,128.04,127.99,0.91832549]
[1768923169510,6.59689058,128.02,127.97,0.91832549]
[1768923169710,6.59689058,128.02,127.97,15.32949286]
[1768923169924,0.90517189,128.03,127.98,8.73202214]
[1768923170212,7.50206247,128.03,127.98,15.32891272]
[1768923170393,6.59689058,128.04,127.99,7.51521607]
[1768923170805,7.50206247,128.04,127.99,0.91832549]
[1768923171011,0.90517189,128.06,128.01,7.51521607]
[1768923171202,7.50206247,128.07,128.02,0.91832549]
[1768923171598,24.62206247,128.09,128.03,7.51521607]
[1768923171917,24.62206247,128.09,128.04,6.59689058]
[1768923172119,24.62206247,128.09,128.03,15.32560916]
[1768923172418,5.34408856,128.1,128.05,0.91832549]
[1768923172621,0.2,128.12,128.09,6.59689058]
[1768923172804,0.2,128.12,128.08,7.51521607]
[1768923173118,0.2,128.12,128.07,6.59689058]
[1768923173320,7.50206247,128.1,128.05,6.59689058]
[1768923173524,7.50206247,128.11,128.05,7.51521607]
[1768923173705,7.50206247,128.11,128.05,0.91832549]
[1768923174021,8.00524708,128.12,128.03,8.72898263]
[1768923174022,7.50206247,128.08,128.03,8.72898263]
[1768923174225,7.50206247,128.08,128.03,15.32587321]
[1768923174607,7.50206247,128.08,128.03,8.72898263]
[1768923174907,7.50206247,128.08,128.03,0.91832549]
[1768923175110,7.50206247,128.08,128.03,8.72883528]
[1768923175319,7.50206247,128.08,128.03,15.32572586]
[1768923175506,7.50206247,128.1,128.04,7.51521607]
[1768923176020,0.90517189,128.09,128.04,15.32487561]
[1768923176396,7.50206247,128.09,128.04,8.72798503]
[1768923176602,6.59689058,128.08,128.04,0.91832549]
[1768923177020,7.50206247,128.09,128.04,8.72811952]
[1768923177519,6.59689058,128.1,128.04,34.85015849]
[1768923177697,7.50206247,128.1,128.04,34.85015849]
[1768923178121,7.50206247,128.1,128.05,0.91832549]
[1768923178825,0.2,128.12,128.08,0.91832549]
[1768923179025,7.50206247,128.1,128.05,0.91832549]
[1768923179521,0.90517189,128.1,128.05,7.51521607]
[1768923179829,6.59689058,128.11,128.06,0.91832549]
[1768923180619,0.2,128.12,128.08,0.91832549]
[1768923180819,0.90517189,128.16,128.1,7.51521607]
[1768923181012,7.50206247,128.16,128.1,7.51521607]
[1768923181509,7.50206247,128.18,128.13,0.91832549]
[1768923181932,7.50206247,128.18,128.13,7.51521607]
[1768923181933,0.90517189,128.18,128.13,7.51521607]
[1768923182118,7.50206247,128.19,128.14,0.91832549]
[1768923182829,7.50206247,128.19,128.14,8.72183542]
[1768923183221,6.59689058,128.19,128.15,0.91832549]
[1768923183428,8.90498481,128.21,128.15,0.91832549]
[1768923183429,7.50206247,128.2,128.15,0.91832549]
[1768923183634,7.50206247,128.19,128.13,7.51521607]
[1768923183838,7.50206247,128.17,128.12,7.80508889]
[1768923184128,6.59689058,128.16,128.11,0.91832549]
[1768923184430,6.59689058,128.16,128.12,8.72316559]
[1768923184631,17.12,128.19,128.13,8.69281955]
[1768923184632,24.62206247,128.19,128.13,8.69281955]
[1768923184937,24.62206247,128.19,128.11,7.80542629]
[1768923184938,7.50206247,128.16,128.11,7.80542629]
[1768923185118,7.50206247,128.16,128.1,14.40308581]
[1768923185319,0.90517189,128.13,128.08,17.12]
[1768923185517,7.50206247,128.13,128.08,24.92736374]
[1768923186432,7.50206247,128.12,128.07,7.80789798]
[1768923186624,7.50206247,128.12,128.06,8.72716509]
[1768923186821,6.59689058,128.12,128.07,0.91832549]
[1768923187018,6.59689058,128.13,128.08,0.91832549]
[1768923187420,7.50206247,128.14,128.09,0.91832549]
[1768923187632,0.90517189,128.14,128.09,7.51521607]
[1768923187834,7.50206247,128.14,128.09,0.91832549]
[1768923188345,6.59689058,128.15,128.1,0.91832549]
[1768923188514,7.50206247,128.15,128.1,0.91832549]
[1768923188716,7.50206247,128.15,128.1,8.72442371]
[1768923189016,7.50206247,128.15,128.1,0.91832549]
[1768923190345,7.50206247,128.17,128.12,0.91832549]
[1768923190549,6.59689058,128.17,128.12,0.91832549]
[1768923190728,15.30421996,128.17,128.12,0.91832549]
[1768923190927,6.59689058,128.16,128.12,0.91832549]
[1768923191126,15.30421996,128.17,128.12,0.91832549]
[1768923191329,0.90517189,128.17,128.12,7.51521607]
[1768923191522,15.3032551,128.19,128.13,7.51521607]
[1768923191733,6.59689058,128.18,128.13,0.91832549]
[1768923191925,6.59689058,128.16,128.11,8.72386897]
[1768923192248,7.50206247,128.15,128.09,7.51521607]
[1768923192655,7.50206247,128.15,128.1,0.91832549]
[1768923193449,15.30498695,128.16,128.11,0.91832549]
[1768923193943,7.50206247,128.15,128.09,15.32195762]
[1768923194137,7.50206247,128.13,128.08,24.9074385]
[1768923194363,7.50206247,128.13,128.08,0.91832549]
[1768923194573,7.50206247,128.11,128.06,0.91832549]
[1768923195059,6.59689058,128.11,128.07,1.07814797]
[1768923195844,7.67039591,128.12,128.07,1.07814797]
[1768923196759,1.07350533,128.12,128.07,7.67503855]
[1768923197066,7.67039591,128.12,128.07,8.88633269]
[1768923197447,1.07350533,128.12,128.07,8.88633269]
[1768923197644,7.67039591,128.12,128.08,0.5]
[1768923197840,6.59689058,128.13,128.08,0.5]
[1768923198061,15.47525016,128.13,128.08,1.57814797]
[1768923198564,7.67039591,128.13,128.08,1.57814797]
[1768923198756,6.59689058,128.13,128.09,1.07814797]
[1768923198960,6.59689058,128.14,128.09,8.884942]
[1768923199164,1.07350533,128.12,128.08,0.5]
[1768923199459,6.59689058,128.13,128.08,8.88570521]
[1768923199658,7.67039591,128.14,128.08,15.48259579]
[1768923200456,7.67039591,128.14,128.09,1.07814797]
[1768923200837,6.59689058,128.13,128.09,1.07814797]
[1768923202064,8.87659842,128.16,128.1,1.07814797]
[1768923202257,7.67039591,128.15,128.1,1.07814797]
[1768923202569,1.07350533,128.16,128.11,1.07814797]
[1768923202768,1.07350533,128.16,128.09,7.80685972]
[1768923202769,7.67039591,128.13,128.08,8.88554963]
[1768923202961,7.67039591,128.13,128.08,1.07814797]
[1768923203163,7.67039591,128.13,128.08,8.88564299]
[1768923203357,6.59689058,128.14,128.1,1.07814797]
[1768923203867,7.67039591,128.14,128.1,1.07814797]
[1768923204541,6.59689058,128.11,128.06,1.07814797]
[1768923204744,7.67039591,128.08,128.02,7.67503855]
[1768923205048,6.59689058,128.04,128.0,1.07814797]
[1768923205543,6.59689058,128.03,128.0,1.07814797]
[1768923205748,6.59689058,128.04,128.0,1.07814797]
[1768923205958,7.67039591,128.05,128.0,8.89055704]
[1768923206266,6.59689058,128.06,128.01,1.07814797]
[1768923206471,7.67039591,128.07,128.02,1.07814797]
[1768923206643,6.59689058,128.06,128.02,1.07814797]
[1768923207253,6.59689058,128.04,128.0,1.07814797]
[1768923207559,6.59689058,128.04,128.0,8.89046412]
[1768923207767,6.59689058,128.05,128.01,1.07814797]
[1768923208680,6.59689058,128.06,128.02,1.07814797]
[1768923209175,1.07350533,128.07,128.02,1.07814797]
[1768923209364,6.59689058,128.06,128.02,1.07814797]
[1768923210676,1.07350533,128.07,128.02,1.07814797]
[1768923210876,6.59689058,128.06,128.02,1.07814797]
[1768923211174,7.67039591,128.03,127.98,8.89170045]
[1768923211352,7.67039591,128.02,127.98,7.81355248]
[1768923211557,7.67039591,128.02,127.98,1.07814797]
[1768923211759,6.59689058,128.01,127.98,1.07814797]
[1768923212148,6.59689058,128.01,127.98,8.89186224]
[1768923212474,7.67039591,128.02,127.98,8.89186224]
[1768923212679,6.59689058,128.02,127.98,8.89186224]
[1768923213772,7.81018908,128.04,127.98,8.89186224]
[1768923213773,7.67039591,128.05,128.0,7.67503855]
[1768923213956,7.67039591,128.05,128.01,1.07814797]
[1768923214577,6.59689058,128.02,127.99,1.07814797]
[1768923214781,6.59689058,128.02,127.97,8.89226349]
[1768923215183,7.67039591,128.03,127.98,1.07814797]
[1768923215480,7.67039591,128.05,128.0,1.07814797]
[1768923215662,6.59689058,128.02,127.98,1.07814797]
[1768923215863,6.59689058,128.01,127.97,8.89219741]
[1768923216561,7.67039591,128.02,127.97,8.89219741]
[1768923219385,6.59689058,128.01,127.97,8.89219741]
[1768923219581,7.67039591,128.02,127.97,8.89219741]
[1768923219884,7.67039591,128.02,127.98,1.07814797]
[1768923220860,1.07350533,128.02,127.98,1.07814797]
[1768923221061,6.59689058,128.03,127.98,8.89168303]
[1768923221273,7.67039591,128.03,127.99,1.07814797]
[1768923221491,7.67039591,128.03,127.98,7.81353506]
[1768923221687,7.67039591,128.03,127.98,8.89168303]
[1768923221878,6.59689058,128.04,128.0,1.07814797]
[1768923222081,7.67039591,128.05,128.0,7.67503855]
[1768923222279,1.07350533,128.05,128.0,1.07814797]
[1768923222586,7.67039591,128.05,128.0,8.89023473]
[1768923222786,7.67039591,128.05,128.0,1.07814797]
[1768923222992,7.66904735,128.04,127.98,27.20799222]
[1768923223180,7.66904735,128.03,127.99,8.89096107]
[1768923223692,6.59554202,128.04,127.99,8.89096107]
[1768923223884,6.59554202,128.04,128.0,7.81243734]
[1768923224078,7.68127208,128.04,128.0,7.81243734]
[1768923224790,7.68127208,128.04,128.0,8.87590049]
[1768923225476,7.68127208,128.04,128.0,1.06346315]
[1768923225677,6.59554202,128.04,128.0,1.06346315]
[1768923225876,7.66787123,128.05,128.0,1.06346315]
[1768923226072,1.07232921,128.05,128.0,1.06346315]
[1768923226272,7.66787123,128.05,128.0,1.06346315]
[1768923226482,7.66787123,128.05,128.0,7.65900517]
[1768923226697,7.66787123,128.05,128.01,1.14798673]
[1768923226893,18.19232921,128.07,128.02,1.14798673]
[1768923227078,24.78787123,128.07,128.02,1.14798673]
[1768923227278,6.59554202,128.06,128.02,1.14798673]
[1768923227778,6.59554202,128.05,128.02,1.14798673]
[1768923228596,6.59554202,128.05,128.01,8.95977926]
[1768923229994,6.59554202,128.02,127.99,1.14798673]
[1768923230376,6.59554202,128.02,127.98,8.96125927]
[1768923230981,1.07232921,128.03,127.98,8.96125927]
[1768923230982,7.66787123,128.03,127.98,8.96125927]
[1768923231297,7.66787123,128.03,127.99,1.14798673]
[1768923231675,6.59554202,128.04,127.99,1.14798673]
[1768923231876,7.66787123,128.04,127.99,8.96093849]
[1768923232075,18.19232921,128.06,128.0,1.14798673]
[1768923232405,1.07232921,128.06,128.01,1.14798673]
[1768923232703,6.59554202,128.07,128.02,1.14798673]
[1768923232885,6.59554202,128.06,128.02,1.14798673]
[1768923233489,7.66787123,128.06,128.02,1.14798673]
[1768923233679,6.59554202,128.05,128.0,1.14798673]
[1768923234405,6.59554202,128.04,128.0,8.96038503]
[1768923235303,1.07232921,128.05,127.98,8.96140244]
[1768923235304,7.66787123,128.03,127.98,8.96140244]
[1768923235504,7.80953779,128.05,127.98,8.96140244]
[1768923235505,7.66787123,128.02,127.98,7.81341571]
[1768923235700,7.66787123,128.01,127.96,1.14798673]
[1768923235884,7.66787123,128.01,127.97,1.14798673]
[1768923236989,6.59554202,128.0,127.97,1.14798673]
[1768923237779,6.59554202,128.0,127.96,7.81467789]
[1768923237780,1.07232921,127.97,127.88,4.07712165]
[1768923237981,6.59554202,127.93,127.89,1.14798673]
[1768923238392,6.59554202,127.92,127.87,8.96830612]
[1768923238586,6.59554202,127.91,127.87,1.14798673]
[1768923238786,7.66787123,127.91,127.87,1.14798673]
[1768923239680,6.59554202,127.9,127.86,1.14798673]
[1768923240401,6.59554202,127.9,127.86,8.96890243]
[1768923240703,6.59554202,127.88,127.85,0.1]
[1768923240885,6.59554202,127.93,127.88,1.14798673]
[1768923241084,6.59554202,127.94,127.89,1.14798673]
[1768923241295,7.66787123,127.94,127.89,1.14798673]
[1768923242202,6.59554202,127.97,127.92,1.14798673]
[1768923242404,6.59554202,127.99,127.94,1.14798673]
[1768923242709,7.66787123,127.99,127.94,1.14798673]
[1768923242911,1.07232921,127.99,127.94,8.96404207]
[1768923243084,19.52600732,128.04,127.96,1.14798673]
[1768923243285,6.59554202,128.01,127.97,1.14798673]
[1768923243783,7.66787123,128.02,127.97,1.14798673]
[1768923243989,6.59554202,128.02,127.97,1.14798673]
[1768923245040,6.59554202,128.02,127.97,8.96228567]
[1768923245396,6.59554202,128.03,127.98,1.14798673]
[1768923245596,6.59554202,128.04,127.99,1.14798673]
[1768923245815,8.88213186,128.05,127.99,1.14798673]
[1768923246104,8.88213186,128.05,128.0,1.14798673]
[1768923246105,7.66787123,128.05,128.0,1.14798673]
[1768923246291,6.59554202,128.04,128.0,1.14798673]
[1768923246913,8.88189139,128.05,128.0,1.14798673]
[1768923247414,6.59554202,128.05,128.0,8.96045182]
[1768923247590,6.59554202,128.04,128.0,1.14798673]
[1768923248507,1.07232921,128.05,127.97,1.14798673]
[1768923248508,6.59554202,128.02,127.97,1.14798673]
[1768923248744,7.66787123,128.02,127.97,1.14798673]
[1768923248884,6.59554202,128.01,127.97,1.14798673]
[1768923249509,6.59554202,128.0,127.97,1.14798673]
[1768923249711,6.59554202,127.99,127.95,1.14798673]
[1768923251187,1.07232921,128.02,127.96,1.14798673]
[1768923251387,6.59554202,128.02,127.97,1.14798673]
[1768923251585,6.59554202,128.03,127.98,1.14798673]
[1768923251806,36.64233004,128.06,127.95,27.3544157]
[1768923251807,6.59554202,128.06,128.0,6.59537562]
[1768923252106,1.07232921,128.07,128.02,6.59554202]
[1768923252409,7.66787123,128.09,128.03,6.59554202]
[1768923252821,15.47490713,128.09,128.03,6.59554202]
[1768923253727,7.66787123,128.08,128.02,14.40634784]
[1768923253930,7.66787123,128.08,128.03,1.14798673]
[1768923254224,7.66787123,128.07,128.01,7.74352875]
[1768923254411,7.66787123,128.06,128.01,1.14798673]
[1768923254725,7.66787123,128.06,128.01,8.95981134]
[1768923255316,6.59554202,128.07,128.02,1.14508657]
[1768923255507,7.74613566,128.08,128.03,1.14508657]
[1768923255823,6.59554202,128.07,128.03,1.14508657]
[1768923257200,6.59554202,128.08,128.04,1.14508657]
[1768923257419,15.553409,128.09,128.04,1.14508657]
[1768923257607,7.74613566,128.09,128.04,1.14508657]
[1768923258920,6.59554202,128.08,128.04,1.14508657]
[1768923259524,6.59554202,128.05,128.0,8.95720466]
[1768923259716,6.59554202,128.04,128.0,8.95720466]
[1768923260031,7.80822987,128.07,128.0,8.95720466]
[1768923260032,7.74613566,128.05,128.0,8.95720466]
[1768923261004,1.15059364,128.09,128.03,1.14508657]
[1768923261221,7.74613566,128.08,128.03,1.14508657]
[1768923261417,7.74613566,128.06,128.01,1.14508657]
[1768923261731,6.59554202,128.04,127.99,1.14508657]
[1768923261922,6.59554202,128.03,127.99,1.14508657]
[1768923262229,6.59554202,128.04,128.0,1.14508657]
[1768923262434,1.15059364,128.05,128.0,1.14508657]
[1768923263830,7.74613566,128.05,128.0,1.14508657]
[1768923264034,15.55567283,128.05,128.0,1.14508657]
[1768923265134,7.74613566,128.01,127.96,1.14508657]
[1768923265434,6.59554202,128.0,127.96,1.14508657]
[1768923265634,6.59554202,128.0,127.95,1.14508657]
[1768923265635,6.59554202,127.99,127.95,1.14508657]
[1768923267738,6.59554202,127.99,127.95,8.96060265]
[1768923268531,6.59554202,128.0,127.96,1.14508657]
[1768923269116,7.74613566,128.01,127.96,1.14508657]
[1768923269513,8.96131585,128.03,127.96,1.14508657]
[1768923269714,6.59554202,128.02,127.96,7.74062859]
[1768923269938,7.74613566,128.03,127.97,1.14508657]
[1768923270114,7.74613566,128.03,127.97,8.95898281]
[1768923270315,7.74613566,128.02,127.97,1.14508657]
[1768923270637,7.74613566,128.0,127.95,8.96031523]
[1768923270824,7.74613566,128.0,127.96,1.14508657]
[1768923271023,6.59554202,128.0,127.96,1.14508657]
[1768923271263,6.59554202,128.0,127.96,8.95995489]
[1768923271421,6.59554202,128.0,127.96,1.14508657]
[1768923272322,1.15059364,127.96,127.86,1.14508657]
[1768923272531,6.59554202,127.94,127.85,17.22]
[1768923272834,6.59554202,127.92,127.88,8.96470858]
[1768923273942,7.74613566,127.93,127.88,8.96470858]
[1768923274143,6.59554202,127.93,127.89,1.14508657]
[1768923276155,7.74613566,127.96,127.91,1.14508657]
[1768923279242,6.59554202,127.97,127.92,1.14508657]
[1768923279545,7.74613566,127.97,127.92,1.14508657]
[1768923279921,6.59554202,127.96,127.92,1.14508657]
[1768923280223,6.59554202,127.95,127.9,8.96348617]
[1768923280417,6.59554202,127.94,127.9,8.96348617]
[1768923281050,7.74613566,127.95,127.9,8.96348617]
[1768923281275,7.74613566,127.95,127.91,8.96287886]
[1768923281552,6.59554202,127.95,127.91,8.96287886]
[1768923281721,7.74613566,127.92,127.87,1.14508657]
[1768923281927,7.74613566,127.89,127.85,0.1]
[1768923282140,6.59554202,127.88,127.85,0.1]
[1768923282339,6.59554202,127.9,127.85,1.24508657]
[1768923282574,6.59554202,127.91,127.86,1.14508657]
[1768923282951,6.60953531,127.91,127.86,1.14508657]
[1768923283776,7.76012895,127.92,127.86,7.75462188]
[1768923284474,7.76012895,127.92,127.87,1.37822305]
[1768923285553,8.02968656,127.89,127.85,0.1]
[1768923286362,6.60953531,127.88,127.85,0.1]
[1768923287774,1.42015125,127.89,127.85,0.1]
[1768923287775,8.02968656,127.89,127.85,0.1]
[1768923290076,1.42015125,127.89,127.85,0.1]
[1768923290279,8.02968656,127.89,127.85,0.1]
[1768923290578,1.42015125,127.89,127.85,0.1]
[1768923290749,8.02968656,127.89,127.85,0.1]
[1768923290949,6.60953531,127.9,127.85,1.51908018]
[1768923291263,8.02968656,127.92,127.87,9.23952281]
[1768923291456,6.60953531,127.95,127.9,6.60953531]
[1768923291775,1.42015125,127.95,127.9,6.60953531]
[1768923292679,1.42015125,127.95,127.9,14.42760985]
[1768923293361,8.02968656,127.97,127.92,8.02861549]
[1768923293563,8.02968656,127.99,127.93,8.02861549]
[1768923293869,1.42015125,127.98,127.93,8.02861549]
[1768923294277,1.42015125,128.0,127.95,6.60953531]
[1768923294469,1.42015125,128.02,127.97,8.02861549]
[1768923294671,1.42015125,128.02,127.98,14.4232562]
[1768923294870,1.42015125,128.02,127.98,7.81372089]
[1768923295071,8.02968656,128.02,127.98,7.81372089]
[1768923295275,1.42015125,128.02,127.98,7.81372089]
[1768923296066,8.02968656,127.99,127.94,1.41908018]
[1768923296281,6.60953531,127.98,127.94,1.41908018]
[1768923296581,6.60953531,127.98,127.94,9.23481655]
[1768923297083,8.02968656,127.99,127.95,7.81549175]
[1768923297681,1.42015125,128.01,127.97,6.60953531]
[1768923297880,1.42015125,128.01,127.98,6.60953531]
[1768923298260,1.42015125,128.01,127.97,14.42385359]
[1768923300492,7.8102807,128.04,127.99,6.60953531]
[1768923300493,1.42015125,128.03,127.99,6.60953531]
[1768923301182,8.02968656,128.05,127.99,25.14861549]
[1768923301385,8.02968656,128.05,128.0,6.60953531]
[1768923301572,13.15233934,128.07,128.01,1.41908018]
[1768923301573,1.42015125,128.07,128.01,1.41908018]
[1768923301776,8.02968656,128.07,128.02,6.60953531]
[1768923302093,1.42015125,128.06,128.01,8.02861549]
[1768923303280,1.42015125,128.05,128.01,6.60953531]
[1768923303480,6.60953531,128.06,127.97,8.02861549]
[1768923303481,8.02968656,128.02,127.97,8.02861549]
[1768923303680,8.02968656,128.02,127.97,32.96276446]
[1768923304081,1.42015125,128.01,127.97,24.93414897]
[1768923304275,1.42015125,127.98,127.94,17.12]
[1768923304480,8.02968656,127.97,127.92,7.81704357]
[1768923304674,1.42015125,127.98,127.92,14.42657888]
[1768923304993,8.02968656,128.0,127.95,6.60953531]
[1768923305293,8.02968656,127.99,127.95,24.93529767]
[1768923305476,1.42015125,127.98,127.94,6.60953531]
[1768923305680,8.02968656,128.0,127.95,14.42492897]
[1768923305885,1.42015125,128.0,127.95,15.84400915]
[1768923306300,1.42015125,128.0,127.96,6.60953531]
[1768923306876,1.42015125,128.02,127.97,6.60953531]
[1768923307180,8.02968656,128.02,127.96,15.84333384]
[1768923307392,8.02968656,128.01,127.96,24.93471835]
[1768923307773,1.42015125,127.96,127.88,1.41908018]
[1768923307970,1.42015125,128.0,127.93,8.02861549]
[1768923308190,8.02968656,128.0,127.95,6.60953531]
[1768923308392,1.42015125,128.0,127.95,6.60953531]
[1768923308584,8.02968656,127.99,127.94,6.60953531]
[1768923308789,8.02968656,127.99,127.94,8.02861549]
[1768923309197,8.02968656,127.99,127.94,15.84461182]
[1768923309899,1.42015125,127.99,127.94,15.84461182]
[1768923310099,1.42015125,127.99,127.95,6.60953531]
[1768923310294,1.42015125,127.99,127.94,35.38502138]
[1768923310500,1.42015125,128.0,127.95,8.02861549]
[1768923310795,1.42015125,127.99,127.94,9.23507651]
[1768923310998,8.02968656,127.97,127.93,24.93650681]
[1768923311303,8.02968656,127.99,127.94,9.235244]
[1768923311502,1.42015125,127.99,127.95,6.60953531]
[1768923312188,6.60953531,128.0,127.95,8.02861549]
[1768923312393,8.02968656,128.01,127.96,6.60953531]
[1768923312596,7.81088071,128.03,127.97,8.02861549]
[1768923312597,6.60953531,128.02,127.97,8.02861549]
[1768923312796,8.02968656,128.04,127.99,6.60953531]
[1768923312999,1.42015125,128.04,128.0,6.60953531]
[1768923314207,1.42015125,128.06,128.02,6.60953531]
[1768923314406,1.42015125,128.08,128.03,6.60953531]
[1768923314599,8.02968656,128.08,128.04,6.60953531]
[1768923314912,1.42015125,128.08,128.04,6.60953531]
[1768923315899,1.42015125,128.08,128.05,6.60953531]
[1768923316491,1.42015125,128.08,128.05,6.57953531]
[1768923317689,1.42015125,128.08,128.03,7.81048046]
[1768923317887,1.42015125,128.08,128.04,6.60953531]
[1768923318293,1.42015125,128.08,128.04,7.80985744]
[1768923318615,1.42015125,128.08,128.04,6.60953531]
[1768923319512,1.42015125,128.08,128.05,6.60953531]
[1768923320221,1.58692739,128.11,128.05,15.92304852]
[1768923320519,1.78692739,128.13,128.09,6.60953531]
[1768923321199,0.2,128.13,128.11,6.60953531]
[1768923321514,19.50482778,128.18,128.11,6.60953531]
[1768923321515,1.58692739,128.18,128.13,9.30841353]
[1768923321817,8.1964627,128.22,128.17,1.50412376]
[1768923322126,8.3964627,128.21,128.16,6.60953531]
[1768923322301,1.78692739,128.21,128.17,6.60953531]
[1768923322917,1.58692739,128.19,128.15,6.60953531]
[1768923323103,1.58692739,128.18,128.13,7.80428977]
[1768923323415,1.58692739,128.18,128.14,6.60953531]
[1768923323594,1.58692739,128.18,128.15,6.60953531]
[1768923323990,8.3964627,128.2,128.15,6.60953531]
[1768923324196,0.2,128.2,128.18,6.60953531]
[1768923324418,0.2,128.2,128.19,6.60953531]
[1768923324826,0.2,128.2,128.18,6.60953531]
[1768923325019,0.2,128.2,128.19,6.60953531]
[1768923325995,0.2,128.21,128.17,44.73811478]
[1768923326329,0.2,128.21,128.2,6.60953531]
[1768923326499,0.2,128.21,128.19,7.80084681]
[1768923326500,0.2,128.21,128.19,6.60953531]
[1768923327928,0.2,128.21,128.2,6.60953531]
[1768923328119,0.2,128.21,128.19,6.60953531]
[1768923328442,0.2,128.21,128.17,1.50412376]
[1768923328443,1.78692739,128.21,128.17,6.60953531]
[1768923328730,1.78692739,128.21,128.15,1.50412376]
[1768923328731,1.58692739,128.2,128.16,23.70953531]
[1768923328907,1.58692739,128.19,128.16,17.1]
[1768923329526,1.58692739,128.19,128.15,31.51239695]
[1768923329729,1.58692739,128.19,128.15,17.1]
[1768923329923,1.58692739,128.18,128.15,17.1]
[1768923330131,1.58692739,128.18,128.15,31.51287274]
[1768923330329,0.2,128.21,128.17,6.60953531]
[1768923330523,8.3964627,128.21,128.16,8.11365907]
[1768923330730,1.58692739,128.2,128.16,6.60953531]
[1768923331033,1.58692739,128.19,128.15,23.70953531]
[1768923331234,1.58692739,128.17,128.13,31.51390231]
[1768923331534,1.58692739,128.17,128.14,6.60953531]
[1768923331922,1.58692739,128.17,128.12,21.01626027]
[1768923331923,1.58692739,128.17,128.12,23.70953531]
[1768923332117,8.1964627,128.17,128.12,31.51467951]
[1768923332528,1.58692739,128.16,128.12,17.1]
[1768923332730,1.58692739,128.14,128.12,17.1]
[1768923332933,8.1964627,128.14,128.09,6.60953531]
[1768923333210,8.1964627,128.14,128.06,19.52122489]
[1768923333211,8.1964627,128.11,128.06,23.70953531]
[1768923333437,1.58692739,128.1,128.06,31.51827832]
[1768923333609,8.1964627,128.1,128.06,17.1]
[1768923333810,8.1964627,128.1,128.04,15.92328141]
[1768923334017,8.1964627,128.1,128.05,24.90932544]
[1768923334222,1.58692739,128.1,128.06,14.41836705]
[1768923334417,1.58692739,128.1,128.06,7.80883174]
[1768923334633,8.1964627,128.09,128.05,17.1]
[1768923335040,8.1964627,128.08,128.03,6.60953531]
[1768923335218,1.58692739,128.08,128.04,17.1]
[1768923335413,8.1964627,128.07,128.02,15.92490971]